bitfinex/quotes_ETHUSD_20241204
["timestamp","ask_amount","ask_price","bid_price","bid_amount"]
[1733342127641,0.24294057,3839.3,3838.9,0.2]
[1733342127833,0.24294057,3839.2,3838.9,0.2]
[1733342128151,0.24294057,3839.3,3838.9,0.2]
[1733342128349,0.24294057,3839.2,3838.9,0.2]
[1733342128964,0.24294057,3839.2,3839.1,0.2]
[1733342129128,0.24294057,3839.5,3839.1,0.2]
[1733342129337,0.24294057,3839.6,3839.1,0.2]
[1733342129515,0.24294057,3839.6,3839.5,0.2]
[1733342129720,1.5386,3840.0,3839.7,0.2]
[1733342129721,3.24294057,3839.9,3839.7,0.2]
[1733342129957,0.24294057,3839.8,3839.7,0.2]
[1733342130255,0.24285859,3839.8,3839.7,0.2]
[1733342130680,2.84715859,3839.8,3839.7,0.2]
[1733342131158,0.24285859,3839.8,3839.2,0.2]
[1733342131331,0.24285859,3839.7,3839.5,0.2]
[1733342131765,0.24285859,3839.9,3839.5,0.2]
[1733342131935,0.24285859,3839.8,3839.7,0.2]
[1733342132123,3.0,3840.1,3839.7,0.2]
[1733342132124,0.24285859,3839.9,3839.7,0.2]
[1733342132322,0.24285859,3840.0,3839.7,0.2]
[1733342132524,0.24285859,3840.1,3839.7,0.2]
[1733342132948,0.24285859,3840.1,3840.0,0.2]
[1733342133268,0.24285859,3840.4,3840.0,0.2]
[1733342133429,3.0,3840.4,3840.3,0.2]
[1733342133623,3.0,3840.4,3838.8,2.80493]
[1733342133624,1.6121,3841.4,3840.7,0.2]
[1733342133842,0.16121,3841.3,3840.7,0.2]
[1733342134020,0.24266269,3841.2,3840.7,0.2]
[1733342134224,0.24266269,3841.2,3839.6,0.2]
[1733342134225,2.60369,3840.7,3840.6,0.2]
[1733342134427,0.24266269,3841.0,3840.6,0.2]
[1733342134625,0.24266269,3840.9,3840.6,0.2]
[1733342134964,2.60369,3840.7,3840.6,0.2]
[1733342135165,3.13098796,3840.7,3840.6,0.2]
[1733342135763,0.52729796,3840.7,3840.6,0.2]
[1733342136082,4.236536,3840.7,3840.6,0.2]
[1733342136286,4.47919869,3840.7,3840.6,0.2]
[1733342137090,4.47919869,3840.7,3839.4,2.04550244]
[1733342137091,2.60382,3840.5,3840.2,0.2]
[1733342137297,2.60396,3840.3,3840.2,0.2]
[1733342137583,2.84651639,3840.3,3840.2,0.2]
[1733342137769,2.60396,3840.3,3840.2,0.2]
[1733342137979,2.8465139,3840.3,3840.2,0.2]
[1733342138183,2.622106,3840.3,3840.2,0.2]
[1733342138869,0.018146,3840.3,3840.2,0.2]
[1733342139856,2.622106,3840.3,3840.2,0.2]
[1733342140776,3.1446926,3840.3,3840.2,0.2]
[1733342141092,3.1446926,3840.3,3839.0,0.51696619]
[1733342141093,4.18916,3840.0,3839.9,0.2]
[1733342141298,7.43179112,3840.0,3839.9,0.2]
[1733342142062,7.44993712,3840.0,3839.9,0.2]
[1733342142274,5.90343249,3840.0,3839.5,0.2]
[1733342142576,2.60443,3839.6,3839.5,0.2]
[1733342142760,2.84706112,3839.6,3839.5,0.2]
[1733342143163,0.018146,3839.6,3839.5,0.2]
[1733342145810,0.018146,3839.6,3839.5,1.7853]
[1733342146002,0.018146,3839.6,3839.5,1.96383]
[1733342146333,0.018146,3839.6,3839.5,4.56833]
[1733342147303,0.018146,3839.6,3839.5,1.96383]
[1733342148219,0.018146,3839.6,3839.5,4.56833]
[1733342151253,0.018146,3839.6,3839.5,1.96383]
[1733342151549,0.018146,3839.6,3839.5,4.56833]
[1733342156370,0.018146,3839.6,3839.5,4.59436623]
[1733342156534,0.018146,3839.6,3839.5,4.56833]
[1733342159237,0.018146,3839.6,3839.5,4.31833]
[1733342161405,0.018146,3839.6,3839.5,4.3443662]
[1733342161609,0.018146,3839.6,3839.5,4.31833]
[1733342162412,0.018146,3839.6,3839.5,4.34436626]
[1733342162915,0.018146,3839.6,3839.5,4.31833]
[1733342164180,0.01327049,3839.6,3839.5,4.31833]
[1733342166390,0.01327049,3839.6,3839.5,4.34436635]
[1733342167821,4.9e-07,3839.6,3839.5,7.89436635]
[1733342168163,4.9e-07,3839.6,3839.5,7.86833]
[1733342169438,0.24327669,3841.6,3841.2,2.60333]
[1733342169633,0.24327669,3841.6,3841.4,2.6032]
[1733342169839,0.24327669,3841.6,3841.5,2.60314]
[1733342171133,0.52733363,3842.2,3841.1,1.5881]
[1733342171445,0.52733363,3842.2,3841.4,2.60321]
[1733342171811,0.52733363,3842.2,3842.0,2.60279]
[1733342172030,0.52733363,3842.2,3841.5,2.60314]
[1733342172327,0.52733363,3842.2,3841.8,2.60292]
[1733342172525,0.52733363,3842.2,3841.4,0.55]
[1733342172744,0.52733363,3842.2,3841.8,2.60291]
[1733342172947,0.52733363,3842.2,3841.4,3.404901]
[1733342173117,0.52733363,3842.2,3841.4,0.801691]
[1733342173454,0.52733363,3842.2,3840.7,1.5441]
[1733342173611,1.5653,3842.0,3840.9,2.60354]
[1733342174019,1.5653,3841.7,3840.7,2.60369]
[1733342174251,1.5653,3841.7,3841.1,2.6034]
[1733342174551,1.5653,3841.7,3840.8,2.60356]
[1733342174738,1.5653,3841.7,3841.1,2.60341]
[1733342175157,1.5653,3841.7,3841.0,1.5441]
[1733342175459,1.5653,3841.7,3840.5,0.02602885]
[1733342175613,1.5653,3841.7,3840.3,1.5441]
[1733342175614,2.60315,3841.5,3840.4,3.0]
[1733342175815,2.60315,3841.5,3840.3,1.52416556]
[1733342176031,1.917515,3841.4,3840.3,1.52416556]
[1733342176246,1.917515,3841.4,3840.0,0.5577294]
[1733342176630,1.917515,3841.4,3840.2,2.60396]
[1733342177040,4.520735,3841.4,3840.2,2.60396]
[1733342177213,1.917515,3841.4,3840.3,2.60396]
[1733342177639,1.917515,3841.4,3840.3,0.37116897]
[1733342177810,1.6572,3841.4,3840.5,2.60376]
[1733342178313,1.6572,3841.4,3840.3,2.60395]
[1733342178514,1.6572,3841.4,3840.3,2.60396]
[1733342178723,1.6572,3841.4,3840.4,0.02603188]
[1733342179035,1.5522,3842.1,3840.9,2.60354]
[1733342179369,0.46822636,3842.0,3841.0,0.02602939]
[1733342179584,0.46822636,3842.0,3840.2,3.0]
[1733342179585,2.60321,3841.5,3840.3,1.5959]
[1733342179740,1.5522,3841.4,3840.3,1.5959]
[1733342180658,1.5522,3841.4,3840.1,0.55]
[1733342180847,4.15543,3841.4,3840.2,2.60401]
[1733342181053,1.5522,3841.4,3840.0,3.0]
[1733342181250,1.595,3841.2,3840.1,0.02603323]
[1733342181454,1.595,3840.9,3839.8,2.60426]
[1733342181663,1.595,3840.9,3839.9,2.60422]
[1733342181941,1.595,3840.9,3840.2,2.60402]
[1733342182249,1.595,3841.6,3840.0,0.2]
[1733342182445,1.595,3841.6,3840.9,2.60355]
[1733342182880,1.595,3841.6,3840.5,0.02603039]
[1733342183033,1.595,3841.6,3840.7,2.60367]
[1733342183855,1.595,3841.6,3840.8,0.02603039]
[1733342184053,1.595,3841.6,3840.8,2.60358]
[1733342184257,1.595,3841.6,3840.9,0.412698]
[1733342186744,1.595,3841.6,3840.9,2.60354]
[1733342187087,1.595,3841.6,3840.6,1.5234]
[1733342187377,1.595,3841.6,3841.0,2.60348]
[1733342187783,1.595,3841.6,3840.6,1.5234]
[1733342187953,1.595,3841.6,3840.8,2.60361]
[1733342188976,2.014788,3841.6,3840.8,2.60361]
[1733342189187,1.595,3841.6,3840.5,0.02602938]
[1733342189479,1.595,3841.6,3840.9,2.60354]
[1733342189793,1.595,3841.6,3840.4,2.60389]
[1733342189940,1.595,3841.6,3840.2,0.0260307]
[1733342190146,1.595,3841.6,3840.5,2.60376]
[1733342190378,1.595,3841.6,3840.3,0.48597941]
[1733342190686,3.0,3842.1,3840.3,0.51200989]
[1733342190913,1.5336,3841.8,3840.2,2.60401]
[1733342191125,1.5336,3841.2,3840.2,2.60401]
[1733342191428,1.5336,3841.2,3840.3,1.6469]
[1733342191573,1.5336,3841.2,3840.4,2.60388]
[1733342192514,1.5336,3841.2,3840.1,0.55]
[1733342192815,1.5336,3841.2,3840.2,3.43806389]
[1733342193513,1.5336,3841.2,3840.1,0.55]
[1733342193720,2.60329,3841.3,3839.7,2.60436]
[1733342194012,1.6554,3840.7,3839.7,0.02603485]
[1733342194214,1.6554,3840.7,3839.6,2.60437]
[1733342194723,1.6554,3840.7,3839.5,0.20456586]
[1733342194724,1.6554,3840.7,3839.5,0.17853]
[1733342194876,1.6331,3840.5,3839.4,0.53720542]
[1733342195081,4.23693,3840.5,3839.4,3.11572863]
[1733342195702,1.6331,3840.3,3838.7,2.60503]
[1733342195907,1.6331,3840.3,3839.1,2.60474]
[1733342195908,2.60404,3840.2,3839.1,2.60474]
[1733342196238,0.24318218,3840.9,3838.7,4.18023]
[1733342196239,1.6331,3839.9,3838.7,1.5752]
[1733342196433,1.79641,3839.9,3838.7,1.5752]
[1733342196723,1.6331,3839.9,3839.2,2.60469]
[1733342197130,1.6331,3839.9,3839.3,2.60463]
[1733342197489,1.6331,3839.9,3839.2,2.60467]
[1733342197916,1.6331,3839.9,3838.8,0.55]
[1733342198227,1.6331,3839.9,3839.0,2.60482]
[1733342198461,1.5068,3839.7,3838.5,0.52247158]
[1733342198763,1.5068,3839.7,3838.9,2.60491]
[1733342198938,1.5068,3839.7,3838.9,0.0260429]
[1733342199135,1.5068,3839.7,3839.0,1.598]
[1733342199334,1.507,3840.4,3839.2,2.60465]
[1733342199538,1.68199997,3840.4,3839.2,2.60465]
[1733342199750,1.6369,3840.2,3839.0,2.60482]
[1733342199961,1.6369,3840.2,3839.2,2.6047]
[1733342200270,1.6369,3840.2,3839.1,3.11989115]
[1733342200448,1.6369,3840.2,3839.2,2.6047]
[1733342200652,0.18119,3840.1,3839.2,2.6047]
[1733342200850,1.6487,3840.0,3839.1,0.51513115]
[1733342201080,1.6487,3840.0,3839.2,0.02604084]
[1733342201371,1.6487,3840.0,3839.3,2.60464]
[1733342201537,1.5649,3841.1,3839.7,2.60437]
[1733342201738,1.087732,3841.9,3840.3,2.60396]
[1733342201739,1.5649,3841.7,3840.3,2.60396]
[1733342201931,1.5649,3841.7,3840.5,1.5604]
[1733342202124,1.5649,3841.7,3840.6,0.57602916]
[1733342202342,0.51763002,3842.2,3840.9,2.60351]
[1733342202664,1.5649,3842.1,3841.4,2.60318]
[1733342202866,1.5649,3842.1,3841.5,2.60314]
[1733342204966,1.79742735,3842.1,3841.0,2.60348]
[1733342205178,1.79742735,3842.1,3841.1,2.60338]
[1733342205562,1.5649,3842.1,3840.8,1.55542736]
[1733342205897,0.51763002,3842.2,3841.7,2.60296]
[1733342206099,0.51763002,3842.2,3841.3,2.60327]
[1733342206290,0.51763002,3842.2,3841.8,2.60293]
[1733342206460,0.51763002,3842.2,3841.9,2.60287]
[1733342206970,1.5025,3842.5,3841.9,2.60287]
[1733342207179,1.5025,3842.5,3841.1,0.02602443]
[1733342207355,0.52577898,3842.3,3842.0,2.60279]
[1733342207558,0.52577898,3842.3,3841.9,2.60281]
[1733342207978,0.52577898,3842.3,3842.2,2.60267]
[1733342208298,0.1632048,3843.1,3842.8,2.60221]
[1733342208511,0.1632048,3843.1,3842.7,2.60233]
[1733342208857,0.1132048,3843.1,3842.7,2.60233]
[1733342209094,0.1132048,3843.1,3842.7,0.260233]
[1733342209296,0.1132048,3843.1,3838.1,5.0]
[1733342209297,0.1132048,3843.1,3843.0,2.60213]
[1733342209688,0.1132048,3843.1,3842.8,2.60226]
[1733342210001,0.1132048,3843.1,3842.9,2.60217]
[1733342210198,0.1132048,3843.1,3843.0,2.60213]
[1733342210502,0.1132048,3843.1,3842.5,1.6102]
[1733342210503,0.1132048,3843.1,3842.8,2.60222]
[1733342210672,0.1132048,3843.1,3842.0,1.6026]
[1733342210871,1.6546,3843.0,3841.6,1.6026]
[1733342211083,1.6546,3843.0,3841.2,0.36397021]
[1733342211285,1.6546,3842.9,3841.6,2.60307]
[1733342211470,1.6546,3842.9,3841.4,0.02602252]
[1733342211694,4.2568,3842.9,3841.4,0.02602252]
[1733342211891,4.2568,3842.9,3841.7,2.60298]
[1733342212075,1.6546,3842.9,3841.4,0.02602252]
[1733342212260,1.6546,3842.9,3841.8,2.60294]
[1733342212460,1.6546,3842.9,3841.5,0.31469923]
[1733342212706,1.6546,3842.9,3841.8,0.55]
[1733342212878,1.6546,3842.9,3841.9,2.60287]
[1733342213075,1.6546,3842.9,3842.1,2.60271]
[1733342213802,1.6546,3842.9,3841.8,0.55]
[1733342213803,1.6546,3842.9,3842.6,2.60239]
[1733342213990,1.6546,3842.9,3842.7,0.02601849]
[1733342214190,0.1132048,3843.1,3842.8,0.26284085]
[1733342214581,0.1132048,3843.1,3842.8,2.60221]
[1733342215283,0.1132048,3843.1,3842.6,2.6024]
[1733342215469,0.1132048,3843.1,3843.0,2.60213]
[1733342217506,0.1132048,3843.1,3842.7,2.60227]
[1733342217507,1.6242048,3843.1,3842.7,2.60227]
[1733342217715,1.6242048,3843.1,3842.8,2.60226]
[1733342218028,1.6242048,3843.1,3842.9,0.260226]
[1733342219104,0.1132048,3843.1,3842.9,0.260226]
[1733342219308,0.1132048,3843.1,3843.0,2.60213]
[1733342219604,0.1132048,3843.1,3842.8,2.60225]
[1733342219810,0.1132048,3843.1,3842.5,0.55]
[1733342219967,0.1132048,3843.1,3842.7,2.60231]
[1733342220172,0.1132048,3843.1,3842.5,0.55]
[1733342220173,0.1132048,3843.1,3842.5,3.15242]
[1733342220409,0.1132048,3843.1,3843.0,2.60213]
[1733342220776,0.1132048,3843.1,3842.8,2.60225]
[1733342221010,0.1132048,3843.1,3842.7,0.55]
[1733342221217,0.1132048,3843.1,3842.7,0.02601464]
[1733342221525,0.1132048,3843.1,3843.0,2.60213]
[1733342221835,0.1132048,3843.1,3843.0,2.862343]
[1733342222035,0.1132048,3843.1,3843.0,4.98535747]
[1733342222749,0.1132048,3843.1,3843.0,4.98535422]
[1733342223108,4.8e-06,3843.1,3843.0,8.18535422]
[1733342223445,1.6641,3845.2,3844.2,2.60128]
[1733342223608,1.6641,3845.2,3844.3,0.260128]
[1733342224228,1.6641,3845.2,3844.4,2.60118]
[1733342224427,1.6641,3845.2,3844.5,2.60111]
[1733342224669,1.6641,3845.2,3844.4,0.55]
[1733342224868,1.6641,3845.2,3844.4,3.15118]
[1733342225173,1.6641,3845.2,3843.8,2.60159]
[1733342225467,1.6641,3845.2,3843.7,1.6421]
[1733342225669,1.6641,3845.2,3843.8,0.57600694]
[1733342225967,0.035,3845.7,3844.0,0.55]
[1733342225968,1.6641,3845.6,3844.0,0.55]
[1733342226170,1.6641,3845.6,3844.1,0.02600371]
[1733342226378,1.6641,3845.6,3844.6,2.60101]
[1733342226670,1.6641,3845.6,3844.7,0.55]
[1733342226967,1.6641,3845.6,3844.6,0.55]
[1733342227174,1.6641,3845.6,3844.8,0.55]
[1733342227328,1.6641,3845.6,3845.0,2.60076]
[1733342227528,1.6641,3845.6,3845.1,0.315076]
[1733342227764,1.6641,3845.6,3845.1,0.292876]
[1733342228326,1.6641,3845.6,3844.8,3.15091]
[1733342228574,1.6641,3845.6,3844.8,0.55]
[1733342228773,1.6641,3845.6,3844.8,3.15089]
[1733342229129,1.6641,3845.6,3844.9,2.60084]
[1733342229928,1.6641,3845.6,3844.8,0.55]
[1733342230130,1.6641,3845.6,3844.9,0.479308]
[1733342230872,1.6641,3845.6,3844.8,0.55]
[1733342231242,1.6641,3845.6,3844.3,3.0]
[1733342231444,1.6641,3845.6,3844.4,0.57600275]
[1733342231867,1.6641,3845.6,3844.4,0.55]
[1733342232577,4.26447,3845.6,3844.4,0.55]
[1733342232741,4.26447,3845.6,3844.6,0.55]
[1733342232937,2.60047,3845.5,3844.6,0.55]
[1733342233344,4.26448,3845.6,3844.6,0.55]
[1733342233943,0.035,3845.7,3845.2,0.55]
[1733342234288,0.035,3845.7,3845.4,2.6005]
[1733342234484,0.035,3845.7,3845.5,0.86764975]
[1733342235280,0.035,3845.7,3845.5,3.46807975]
[1733342235478,0.035,3845.7,3845.6,2.60037]
[1733342235685,0.035,3845.7,3845.6,0.55]
[1733342235976,0.035,3845.7,3845.6,6.15037]
[1733342236172,0.035,3845.7,3845.6,6.96156198]
[1733342236476,3.58552112,3846.5,3845.6,6.96156198]
[1733342236477,3.58552112,3846.5,3845.8,2.60022]
[1733342236782,3.58552112,3846.5,3845.9,0.55]
[1733342237080,2.03302112,3846.5,3845.9,0.55]
[1733342237379,2.03302112,3846.5,3845.7,3.55]
[1733342237544,2.03302112,3846.5,3845.9,0.55]
[1733342237945,2.03302112,3846.5,3845.8,3.55]
[1733342239094,2.03302112,3846.5,3845.9,0.55]
[1733342239850,2.03302112,3846.5,3845.9,2.60017]
[1733342240556,2.03302112,3846.5,3846.4,2.59983]
[1733342240840,2.03302112,3846.5,3846.4,0.809983]
[1733342241059,2.03302112,3846.5,3846.4,3.809983]
[1733342241468,2.03302112,3846.5,3846.4,0.259983]
[1733342241683,2.03302112,3846.5,3845.6,3.55]
[1733342241842,2.03302112,3846.5,3845.9,2.6001]
[1733342242048,2.03302112,3846.5,3846.0,2.60008]
[1733342242580,2.03302112,3846.5,3845.8,2.60018]
[1733342242782,2.03302112,3846.5,3845.6,3.55]
[1733342242783,2.03302112,3846.5,3845.9,0.615018]
[1733342243087,2.03302112,3846.5,3846.0,2.6001]
[1733342243404,2.03302112,3846.5,3846.1,2.60003]
[1733342244455,2.03302112,3846.5,3845.9,0.615018]
[1733342244652,2.03302112,3846.5,3846.1,2.59997]
[1733342245249,2.03302112,3846.5,3845.9,0.615018]
[1733342245582,2.03302112,3846.5,3846.2,2.59993]
[1733342245745,2.03302112,3846.5,3846.0,0.6215278]
[1733342246284,1.5218,3846.4,3845.5,0.31764975]
[1733342246456,1.5218,3846.4,3845.5,2.6004]
[1733342246779,1.5218,3846.4,3845.1,4.16581]
[1733342246780,1.5218,3846.4,3845.3,2.60056]
[1733342247199,1.5218,3846.4,3845.1,1.5651]
[1733342247496,1.5218,3846.4,3845.4,2.60045]
[1733342247663,1.5218,3846.4,3844.9,2.6008]
[1733342247869,1.6086,3846.2,3845.3,2.60056]
[1733342248069,1.6086,3846.2,3845.1,2.6007]
[1733342248278,1.6086,3846.2,3845.0,0.55]
[1733342248494,4.20856,3846.2,3845.1,1.09234978]
[1733342248693,1.6086,3845.9,3844.4,1.5784]
[1733342248853,1.543,3845.7,3844.4,1.5784]
[1733342249462,1.543,3845.7,3844.4,4.17953]
[1733342249870,1.543,3845.7,3844.9,2.60081]
[1733342250259,1.543,3845.7,3844.4,1.5784]
[1733342250260,1.543,3845.7,3844.7,2.60096]
[1733342250461,1.543,3845.7,3844.8,2.6009]
[1733342250661,1.73755443,3845.7,3844.8,2.6009]
[1733342251360,1.582,3845.5,3843.9,1.6093]
[1733342251660,1.82368428,3845.5,3844.3,2.60122]
[1733342251994,2.60038,3845.6,3843.9,1.6093]
[1733342251995,0.24168428,3845.4,3844.4,2.60118]
[1733342252161,1.6383,3845.3,3843.9,4.21078]
[1733342252361,1.6383,3845.3,3844.1,2.60135]
[1733342252575,0.24168428,3845.2,3844.3,2.60124]
[1733342252786,1.6383,3845.3,3844.3,2.60124]
[1733342252963,1.87998428,3845.3,3844.3,2.60124]
[1733342253306,2.60044,3845.5,3844.0,0.421078]
[1733342253307,1.6383,3845.1,3844.2,2.60126]
[1733342253611,1.6383,3845.1,3844.5,2.60111]
[1733342253900,1.6383,3845.1,3844.6,0.02600796]
[1733342254100,1.6383,3845.1,3844.4,2.60114]
[1733342254408,0.24234581,3845.6,3845.5,2.60044]
[1733342254565,1.5213,3845.8,3845.6,2.60034]
[1733342254771,1.5213,3845.8,3845.4,2.60049]
[1733342255079,1.5213,3845.8,3844.4,2.60118]
[1733342255080,1.5213,3845.8,3844.5,1.6413]
[1733342255401,2.55480002,3846.5,3844.8,2.60084]
[1733342255402,1.5213,3845.6,3844.8,2.60084]
[1733342255619,0.24243249,3845.5,3844.8,2.60084]
[1733342255920,0.24245934,3845.4,3844.6,2.60103]
[1733342256082,1.5213,3845.6,3844.2,1.9435338]
[1733342256282,0.2424503,3845.5,3844.9,2.60083]
[1733342256512,1.5213,3845.6,3844.9,2.60083]
[1733342257393,1.5213,3845.6,3844.7,2.60096]
[1733342257596,1.67343,3845.6,3844.9,2.60083]
[1733342258291,1.67343,3845.6,3844.2,1.9435338]
[1733342258614,1.5224,3845.4,3844.5,2.60111]
[1733342259103,0.24254509,3845.3,3844.5,2.60111]
[1733342259484,0.24255581,3845.3,3844.5,2.60111]
[1733342259822,1.5224,3845.4,3844.2,0.3022338]
[1733342260197,0.24255581,3845.5,3845.4,2.6005]
[1733342260368,1.6436,3846.0,3845.5,2.60042]
[1733342260568,1.6436,3846.0,3844.8,0.02600153]
[1733342260569,1.6436,3846.0,3844.8,0.57600153]
[1733342260773,1.6436,3846.0,3845.3,2.60052]
[1733342261019,1.6436,3846.0,3845.3,2.60055]
[1733342261673,1.6436,3846.0,3844.6,4.2059]
[1733342261874,1.6144,3845.9,3844.7,2.60094]
[1733342262259,1.6553,3845.7,3843.9,2.06805478]
[1733342262530,3.3880282,3846.4,3843.9,2.06805478]
[1733342262531,1.6553,3845.4,3843.9,0.98941326]
[1733342262694,2.42484901,3845.4,3844.1,2.60133]
[1733342262895,1.6553,3845.3,3844.3,2.60123]
[1733342263225,1.6553,3845.3,3844.1,2.60138]
[1733342263538,0.24257344,3845.5,3844.4,2.60118]
[1733342263834,1.81017344,3846.0,3844.5,0.99633173]
[1733342264131,1.5676,3846.0,3845.3,2.60051]
[1733342264334,1.5676,3846.0,3845.0,2.60074]
[1733342264531,1.5676,3846.0,3844.7,2.60094]
[1733342264532,1.5676,3846.0,3844.7,0.02600305]
[1733342264695,1.5676,3846.0,3844.5,0.97032855]
[1733342264696,1.5676,3846.0,3845.0,2.60071]
[1733342264890,0.18101349,3845.9,3845.1,2.60069]
[1733342265119,0.18101349,3845.9,3845.2,2.60063]
[1733342265330,0.18101349,3845.9,3845.0,2.60076]
[1733342265639,0.18101349,3845.9,3845.1,2.60071]
[1733342266002,1.5676,3846.0,3845.2,1.576]
[1733342266147,0.24253485,3846.3,3845.3,0.55]
[1733342266148,1.6282,3846.3,3845.3,0.55]
[1733342266314,1.6282,3846.3,3846.0,2.60009]
[1733342266641,1.6282,3846.3,3846.2,2.59996]
[1733342267141,2.03302112,3846.5,3845.2,1.576]
[1733342267350,2.03302112,3846.5,3846.3,2.59984]
[1733342267653,2.03302112,3846.5,3846.4,2.59983]
[1733342270020,2.03302112,3846.5,3846.0,0.55]
[1733342270519,2.03302112,3846.5,3846.3,2.5999]
[1733342270855,2.03302112,3846.5,3846.4,2.59983]
[1733342272858,2.03302112,3846.5,3846.2,2.59996]
[1733342273161,2.03302112,3846.5,3844.9,2.6008]
[1733342273162,2.03302112,3846.5,3846.0,2.60009]
[1733342273368,2.03302112,3846.5,3845.5,2.60044]
[1733342273369,2.24440502,3846.5,3845.5,2.60044]
[1733342273662,1.5548,3846.4,3845.7,2.60026]
[1733342273864,1.5548,3846.4,3845.3,1.5572]
[1733342274168,1.5548,3846.4,3845.3,2.60051]
[1733342274360,1.5548,3846.4,3845.4,2.60049]
[1733342274663,0.3799205,3846.3,3845.4,2.60048]
[1733342274864,1.5548,3846.2,3845.2,0.52071343]
[1733342275170,1.5548,3846.2,3845.9,2.60014]
[1733342275324,1.5548,3846.2,3845.7,2.60029]
[1733342276259,1.5548,3846.2,3845.2,3.12132343]
[1733342276434,1.5548,3846.2,3845.2,0.99256577]
[1733342276755,1.5548,3846.2,3845.9,2.60017]
[1733342277116,1.5548,3846.2,3845.4,2.6005]
[1733342277331,1.5548,3846.2,3845.2,0.99256577]
[1733342277572,1.5548,3846.2,3845.3,2.60057]
[1733342277774,1.5548,3846.2,3845.8,2.60017]
[1733342278249,1.5548,3846.2,3845.9,2.60016]
[1733342278446,1.5548,3846.2,3845.9,2.60011]
[1733342278743,1.5548,3846.2,3846.0,2.60009]
[1733342279575,1.5548,3846.2,3846.0,2.60006]
[1733342279746,2.03302112,3846.5,3846.0,1.854506]
[1733342279935,2.03302112,3846.5,3846.2,2.5999]
[1733342281381,2.03302112,3846.5,3846.2,2.59991]
[1733342282250,2.03302112,3846.5,3845.8,2.60023]
[1733342282471,2.03302112,3846.5,3846.1,2.59997]
[1733342282875,2.03302112,3846.5,3846.0,2.60003]
[1733342283178,2.03302112,3846.5,3845.7,1.5047]
[1733342283179,2.03302112,3846.5,3846.2,2.59995]
[1733342283374,2.03302112,3846.5,3845.8,2.60023]
[1733342283685,2.03302112,3846.5,3846.2,2.5999]
[1733342285159,2.03302112,3846.5,3846.0,2.60009]
[1733342285370,1.657,3846.4,3846.1,2.59997]
[1733342285760,1.657,3846.4,3846.0,2.60007]
[1733342286015,1.657,3846.4,3845.4,1.6356]
[1733342286016,1.657,3846.4,3846.1,2.60002]
[1733342286133,1.657,3846.4,3845.3,0.55]
[1733342286437,1.657,3846.4,3845.5,0.55]
[1733342286633,1.657,3846.4,3845.3,0.55]
[1733342286859,1.657,3846.4,3845.8,2.60017]
[1733342287072,1.657,3846.4,3845.9,2.60016]
[1733342287246,1.657,3846.4,3845.6,2.60031]
[1733342287447,0.36900211,3846.3,3845.6,2.60031]
[1733342287841,0.36900211,3846.3,3845.7,2.60029]
[1733342288042,0.36900211,3846.3,3845.9,2.60017]
[1733342288235,2.03302112,3846.5,3845.3,4.16965967]
[1733342288463,2.03302112,3846.5,3846.1,2.60003]
[1733342289738,2.03302112,3846.5,3845.3,4.14366]
[1733342289945,2.03302112,3846.5,3845.4,0.5759971]
[1733342290141,2.03302112,3846.5,3845.5,2.60044]
[1733342290370,2.03302112,3846.5,3845.6,1.02195371]
[1733342290644,2.03302112,3846.5,3846.4,2.59983]
[1733342293878,2.03302112,3846.5,3846.4,3.14983]
[1733342297402,2.03302112,3846.5,3846.4,2.59983]
[1733342300684,2.03302112,3846.5,3846.4,3.14983]
[1733342300925,2.03302112,3846.5,3846.4,8.317811]
[1733342303225,1.12e-06,3846.5,3846.4,8.317811]
[1733342303429,8.99e-06,3846.7,3846.4,8.317811]
[1733342303671,8.99e-06,3846.7,3846.6,4.66669]
[1733342305619,8.99e-06,3846.7,3846.6,7.66669]
[1733342305819,8.99e-06,3846.7,3846.6,9.05343875]
[1733342308869,0.50956356,3848.0,3846.7,3.55]
[1733342309021,0.50956356,3848.0,3847.0,0.55]
[1733342309358,0.50956356,3848.0,3847.3,0.55]
[1733342309661,0.50956356,3848.0,3847.6,0.55]
[1733342309964,0.50956356,3848.0,3847.7,2.59895]
[1733342310462,0.50956356,3848.0,3847.3,0.37252957]
[1733342310666,0.50956356,3848.0,3847.5,2.59908]
[1733342311289,0.50956356,3848.0,3847.4,0.55]
[1733342311490,0.50956356,3848.0,3847.4,3.39489296]
[1733342312593,0.50956356,3848.0,3847.5,2.59906]
[1733342313341,0.50956356,3848.0,3847.4,0.24578296]
[1733342313623,1.6652,3847.6,3846.6,2.59969]
[1733342313782,1.6652,3847.5,3846.6,2.59969]
[1733342314386,1.6652,3847.5,3846.6,0.259969]
[1733342314689,1.6652,3847.5,3846.7,2.59962]
[1733342314911,1.6652,3847.5,3846.5,2.59975]
[1733342315608,1.6024,3847.4,3846.3,2.59989]
[1733342315803,4.20162,3847.3,3845.7,1.5075]
[1733342316003,1.6024,3847.3,3845.9,2.60017]
[1733342316308,1.6024,3847.3,3846.3,2.59987]
[1733342316736,1.6024,3847.3,3846.4,2.59982]
[1733342317197,1.6024,3847.3,3846.3,2.59989]
[1733342317545,1.6024,3847.3,3846.4,2.59983]
[1733342317920,1.2024,3847.3,3846.2,2.59995]
[1733342318132,1.2024,3847.3,3846.2,3.56795078]
[1733342318293,2.59916,3847.4,3846.2,3.56795078]
[1733342318668,2.59902,3847.6,3845.5,2.60042]
[1733342318821,0.50844374,3847.0,3845.3,2.60056]
[1733342319132,0.50844374,3847.0,3844.4,2.60116]
[1733342319133,0.50844374,3847.0,3844.6,0.51764094]
[1733342319351,2.59963,3846.7,3844.6,3.11864094]
[1733342319508,0.24263461,3846.6,3844.8,2.60091]